[Event "Rapid Tournament (RAP)"]
[Site "Biel, Switzerland"]
[Date "2026.07.12"]
[Round "4.53"]
[White "Gheorghiu, Gabriel-Ion"]
[Black "Tan, Jimmy"]
[Result "1/2-1/2"]
[TimeControl "15 + 5"]
[WhiteTitle "-"]
[BlackTitle "-"]
[WhiteFideId "1248820"]
[BlackFideId "129057499"]
[WhiteElo "1679"]
[BlackElo "1845"]

1. d4 {[%clk 00:15:06]} {[%emt 00:00:03]} Nf6 {[%clk 00:15:06]} {[%emt
00:00:04]} 2. c4 {[%clk 00:15:09]} {[%emt 00:00:02]} c5 {[%clk 00:15:09]}
{[%emt 00:00:03]} 3. d5 {[%clk 00:15:10]} {[%emt 00:00:03]} b5 {[%clk
00:15:11]} {[%emt 00:00:02]} 4. b3 {[%clk 00:15:10]} {[%emt 00:00:06]} e6
{[%clk 00:14:55]} {[%emt 00:00:21]} 5. dxe6 {[%clk 00:15:05]} {[%emt 00:00:09]}
fxe6 {[%clk 00:14:58]} {[%emt 00:00:02]} 6. e3 {[%clk 00:15:01]} {[%emt
00:00:10]} g6 {[%clk 00:13:52]} {[%emt 00:01:11]} 7. Nf3 {[%clk 00:14:50]}
{[%emt 00:00:15]} Bg7 {[%clk 00:13:50]} {[%emt 00:00:08]} 8. Bb2 {[%clk
00:14:47]} {[%emt 00:00:07]} O-O {[%clk 00:13:51]} {[%emt 00:00:04]} 9. Be2
{[%clk 00:14:45]} {[%emt 00:00:08]} Bb7 {[%clk 00:12:46]} {[%emt 00:01:10]} 10.
O-O {[%clk 00:14:45]} {[%emt 00:00:05]} b4 {[%clk 00:12:17]} {[%emt 00:00:34]}
11. Nbd2 {[%clk 00:13:51]} {[%emt 00:00:59]} Nc6 {[%clk 00:11:47]} {[%emt
00:00:35]} 12. Qc2 {[%clk 00:12:30]} {[%emt 00:01:26]} Qe7 {[%clk 00:11:28]}
{[%emt 00:00:24]} 13. Rad1 {[%clk 00:12:21]} {[%emt 00:00:14]} a5 {[%clk
00:11:10]} {[%emt 00:00:24]} 14. Ng5 {[%clk 00:11:50]} {[%emt 00:00:36]} Rad8
{[%clk 00:09:58]} {[%emt 00:01:16]} 15. Bf3 {[%clk 00:11:12]} {[%emt 00:00:43]}
d5 {[%clk 00:09:15]} {[%emt 00:00:48]} 16. cxd5 {[%clk 00:10:48]} {[%emt
00:00:29]} exd5 {[%clk 00:09:17]} {[%emt 00:00:02]} 17. Nb1 {[%clk 00:10:22]}
{[%emt 00:00:32]} Ne5 {[%clk 00:09:07]} {[%emt 00:00:15]} 18. Rd2 {[%clk
00:09:03]} {[%emt 00:01:24]} Nxf3+ {[%clk 00:08:53]} {[%emt 00:00:19]} 19. Nxf3
{[%clk 00:09:07]} {[%emt 00:00:01]} d4 {[%clk 00:07:39]} {[%emt 00:01:19]} 20.
exd4 {[%clk 00:08:37]} {[%emt 00:00:35]} Bxf3 {[%clk 00:07:41]} {[%emt
00:00:03]} 21. gxf3 {[%clk 00:08:40]} {[%emt 00:00:01]} Nh5 {[%clk 00:06:27]}
{[%emt 00:01:19]} 22. Qc4+ {[%clk 00:07:24]} {[%emt 00:01:22]} Kh8 {[%clk
00:06:18]} {[%emt 00:00:14]} 23. dxc5 {[%clk 00:06:19]} {[%emt 00:01:11]} Rxd2
{[%clk 00:05:30]} {[%emt 00:00:52]} 24. Bxg7+ {[%clk 00:06:14]} {[%emt
00:00:10]} Nxg7 {[%clk 00:04:27]} {[%emt 00:01:08]} 25. Nxd2 {[%clk 00:06:16]}
{[%emt 00:00:03]} Qg5+ {[%clk 00:04:28]} {[%emt 00:00:03]} 26. Kh1 {[%clk
00:05:52]} {[%emt 00:00:30]} Qxd2 {[%clk 00:04:31]} {[%emt 00:00:02]} 27. c6
{[%clk 00:05:53]} {[%emt 00:00:03]} Qd6 {[%clk 00:02:47]} {[%emt 00:01:49]} 28.
Rc1 {[%clk 00:05:39]} {[%emt 00:00:19]} Ne6 {[%clk 00:02:26]} {[%emt 00:00:26]}
29. Re1 {[%clk 00:04:42]} {[%emt 00:01:02]} Nc7 {[%clk 00:02:12]} {[%emt
00:00:20]} 30. Re3 {[%clk 00:04:02]} {[%emt 00:00:44]} Rf4 {[%clk 00:01:56]}
{[%emt 00:00:22]} 31. Rd3 {[%clk 00:01:20]} {[%emt 00:02:48]} Rxc4 {[%clk
00:00:43]} {[%emt 00:01:18]} 32. Rxd6 {[%clk 00:01:22]} {[%emt 00:00:02]} Rc1+
{[%clk 00:00:44]} {[%emt 00:00:04]} 33. Kg2 {[%clk 00:01:25]} {[%emt 00:00:02]}
Nb5 {[%clk 00:00:27]} {[%emt 00:00:23]} 34. Rd5 {[%clk 00:01:06]} {[%emt
00:00:24]} Nc3 {[%clk 00:00:09]} {[%emt 00:00:22]} 35. Rd8+ {[%clk 00:00:50]}
{[%emt 00:00:21]} Kg7 {[%clk 00:00:13]} {[%emt 00:00:01]} 36. c7 {[%clk
00:00:52]} {[%emt 00:00:03]} Nxa2 {[%clk 00:00:07]} {[%emt 00:00:12]} 37. c8=Q
Rxc8 {[%clk 00:00:10]} 38. Rxc8 {[%clk 00:00:59]} {[%emt 00:00:02]} Nc3 {[%clk
00:00:08]} {[%emt 00:00:06]} 39. Rc5 {[%clk 00:00:57]} {[%emt 00:00:07]} a4
{[%clk 00:00:12]} {[%emt 00:00:01]} 40. bxa4 {[%clk 00:01:00]} {[%emt
00:00:02]} Nxa4 {[%clk 00:00:13]} {[%emt 00:00:04]} 41. Rb5 {[%clk 00:01:03]}
Nc3 {[%clk 00:00:15]} {[%emt 00:00:04]} 42. Rxb4 {[%clk 00:01:07]} {[%emt
00:00:02]} Nd5 {[%clk 00:00:16]} {[%emt 00:00:04]} 43. Rb3 {[%clk 00:01:09]}
{[%emt 00:00:02]} Kf6 {[%emt 00:00:17]} 1/2-1/2

[Event "Rapid Tournament (RAP)"]
[Site "Biel, Switzerland"]
[Date "2026.07.12"]
[Round "4.54"]
[White "Guidi, Elia"]
[Black "Erb, Bernhard"]
[Result "0-1"]
[TimeControl "15 + 5"]
[WhiteTitle "-"]
[BlackTitle "-"]
[WhiteFideId "1351931"]
[BlackFideId "1319809"]
[WhiteElo "1627"]
[BlackElo "1837"]

1. d4 {[%clk 00:15:07]} {[%emt 00:00:02]} e6 {[%clk 00:15:04]} {[%emt
00:00:07]} 2. c4 {[%clk 00:15:10]} {[%emt 00:00:02]} Nf6 {[%clk 00:15:06]}
{[%emt 00:00:03]} 3. Nc3 {[%clk 00:15:10]} {[%emt 00:00:05]} c5 {[%clk
00:15:06]} {[%emt 00:00:04]} 4. d5 {[%clk 00:15:09]} {[%emt 00:00:06]} d6
{[%clk 00:15:09]} {[%emt 00:00:03]} 5. e4 {[%clk 00:15:11]} {[%emt 00:00:03]}
exd5 {[%clk 00:15:06]} {[%emt 00:00:08]} 6. exd5 {[%clk 00:15:11]} {[%emt
00:00:05]} Nbd7 {[%clk 00:15:08]} {[%emt 00:00:03]} 7. Nf3 {[%clk 00:15:10]}
{[%emt 00:00:06]} Be7 {[%clk 00:15:10]} {[%emt 00:00:03]} 8. Bd3 {[%clk
00:15:10]} {[%emt 00:00:05]} O-O {[%clk 00:15:10]} {[%emt 00:00:04]} 9. O-O
{[%clk 00:15:12]} {[%emt 00:00:03]} Ng4 {[%clk 00:14:42]} {[%emt 00:00:34]} 10.
Re1 {[%clk 00:14:11]} {[%emt 00:01:06]} Nde5 {[%clk 00:14:39]} {[%emt
00:00:07]} 11. Nxe5 {[%clk 00:13:58]} {[%emt 00:00:19]} Nxe5 {[%clk 00:14:42]}
{[%emt 00:00:02]} 12. Bc2 {[%clk 00:13:59]} {[%emt 00:00:05]} Nxc4 {[%clk
00:14:38]} {[%emt 00:00:08]} 13. Qh5 {[%clk 00:13:21]} {[%emt 00:00:42]} g6
{[%clk 00:14:37]} {[%emt 00:00:06]} 14. Qh6 {[%clk 00:13:00]} {[%emt 00:00:27]}
Ne5 {[%clk 00:14:34]} {[%emt 00:00:07]} 15. Ne4 {[%clk 00:12:40]} {[%emt
00:00:26]} f5 {[%clk 00:14:16]} {[%emt 00:00:22]} 16. Ng5 {[%clk 00:12:22]}
{[%emt 00:00:23]} Bxg5 {[%clk 00:14:15]} {[%emt 00:00:06]} 17. Bxg5 {[%clk
00:12:24]} {[%emt 00:00:04]} Qd7 {[%clk 00:13:39]} {[%emt 00:00:40]} 18. Qh4
{[%clk 00:09:41]} {[%emt 00:02:49]} Rf7 {[%clk 00:13:14]} {[%emt 00:00:29]} 19.
Rxe5 {[%clk 00:06:32]} {[%emt 00:03:15]} dxe5 {[%clk 00:13:12]} {[%emt
00:00:06]} 20. d6 {[%clk 00:06:35]} {[%emt 00:00:02]} b6 {[%clk 00:12:38]}
{[%emt 00:00:39]} 21. Bb3 {[%clk 00:06:36]} {[%emt 00:00:04]} Bb7 {[%clk
00:12:29]} {[%emt 00:00:14]} 22. Qh6 {[%clk 00:06:36]} {[%emt 00:00:05]} Qc6
{[%clk 00:11:38]} {[%emt 00:00:56]} 23. Bxf7+ {[%clk 00:06:27]} {[%emt
00:00:15]} Kxf7 {[%clk 00:11:41]} {[%emt 00:00:02]} 24. Qxh7+ {[%clk 00:06:29]}
{[%emt 00:00:03]} Ke6 {[%clk 00:11:21]} {[%emt 00:00:24]} 25. Qxg6+ {[%clk
00:05:56]} {[%emt 00:00:38]} Kd5 {[%clk 00:11:24]} {[%emt 00:00:02]} 26. Qxf5
{[%clk 00:05:16]} {[%emt 00:00:46]} Kc4 {[%clk 00:11:15]} {[%emt 00:00:13]} 27.
Rc1+ {[%clk 00:05:14]} {[%emt 00:00:07]} Kb5 {[%clk 00:11:17]} {[%emt
00:00:03]} 28. Qd3+ {[%clk 00:05:15]} {[%emt 00:00:04]} c4 {[%clk 00:11:17]}
{[%emt 00:00:05]} 29. a4+ {[%clk 00:04:13]} {[%emt 00:01:08]} Ka5 {[%clk
00:10:17]} {[%emt 00:01:04]} 30. Bd2+ {[%clk 00:03:37]} {[%emt 00:00:41]} Ka6
{[%clk 00:09:51]} {[%emt 00:00:32]} 31. Qg3 {[%clk 00:02:51]} {[%emt 00:00:51]}
Qxd6 {[%clk 00:09:37]} {[%emt 00:00:18]} 32. Be3 {[%clk 00:01:53]} {[%emt
00:01:05]} Rc8 {[%clk 00:09:34]} {[%emt 00:00:06]} 33. Qg4 {[%clk 00:01:50]}
{[%emt 00:00:09]} Qc6 {[%clk 00:09:10]} {[%emt 00:00:28]} 34. Rd1 {[%clk
00:01:18]} {[%emt 00:00:38]} Qxa4 {[%clk 00:08:31]} {[%emt 00:00:43]} 35. h3
{[%clk 00:01:15]} {[%emt 00:00:09]} Qc6 {[%clk 00:08:05]} {[%emt 00:00:31]} 36.
Ra1+ {[%clk 00:01:11]} {[%emt 00:00:10]} Kb5 {[%clk 00:08:07]} {[%emt
00:00:02]} 37. Qg5 {[%clk 00:00:55]} {[%emt 00:00:21]} Re8 {[%clk 00:07:48]}
{[%emt 00:00:24]} 38. Qg3 {[%clk 00:00:26]} {[%emt 00:00:34]} a5 {[%clk
00:07:49]} {[%emt 00:00:04]} 39. f3 {[%emt 00:00:19]} Qd5 {[%clk 00:07:21]}
{[%emt 00:00:30]} 40. Qg7 {[%clk 00:00:09]} {[%emt 00:00:11]} Ka6 {[%clk
00:06:50]} {[%emt 00:00:36]} 41. Qh6 {[%clk 00:00:11]} {[%emt 00:00:03]} Qb5
{[%clk 00:06:41]} {[%emt 00:00:13]} 42. Qg6 {[%clk 00:00:10]} {[%emt 00:00:07]}
Rc8 {[%clk 00:06:34]} {[%emt 00:00:12]} 43. Qc2 {[%clk 00:00:10]} {[%emt
00:00:04]} Rg8 {[%clk 00:06:27]} {[%emt 00:00:12]} 44. Kh1 {[%clk 00:00:11]}
{[%emt 00:00:06]} Rd8 {[%clk 00:06:18]} {[%emt 00:00:13]} 45. Re1 {[%clk
00:00:11]} {[%emt 00:00:04]} Rd3 {[%clk 00:06:14]} {[%emt 00:00:10]} 46. Bf2
{[%clk 00:00:12]} {[%emt 00:00:04]} Rb3 {[%clk 00:06:14]} {[%emt 00:00:05]} 47.
Qf5 {[%clk 00:00:08]} {[%emt 00:00:09]} Rxb2 {[%clk 00:06:13]} {[%emt
00:00:05]} 48. Rxe5 {[%clk 00:00:10]} {[%emt 00:00:04]} Qb4 {[%clk 00:06:02]}
{[%emt 00:00:15]} 49. Be3 {[%clk 00:00:06]} {[%emt 00:00:10]} Qe1+ {[%clk
00:05:53]} {[%emt 00:00:12]} 50. Kh2 {[%clk 00:00:09]} {[%emt 00:00:03]} Rb1
{[%clk 00:05:55]} {[%emt 00:00:03]} 51. Qf6 {[%emt 00:00:19]} Qh1+ {[%emt
00:00:04]} 52. Kg3 {[%emt 00:00:02]} 0-1

[Event "Rapid Tournament (RAP)"]
[Site "Biel, Switzerland"]
[Date "2026.07.12"]
[Round "5.1"]
[White "Bu, Xiangzhi"]
[Black "Gopal, G.N."]
[Result "1/2-1/2"]
[TimeControl "15 + 5"]
[WhiteTitle "-"]
[BlackTitle "-"]
[WhiteFideId "8601445"]
[BlackFideId "5015693"]
[WhiteElo "2583"]
[BlackElo "2471"]

1. Nf3 {[%clk 00:15:08]} {[%emt 00:00:02]} c5 {[%clk 00:15:07]} {[%emt
00:00:02]} 2. c4 {[%clk 00:15:11]} {[%emt 00:00:02]} Nf6 {[%clk 00:15:11]}
{[%emt 00:00:02]} 3. Nc3 {[%clk 00:15:14]} Nc6 {[%clk 00:15:15]} {[%emt
00:00:01]} 4. g3 {[%clk 00:15:17]} {[%emt 00:00:02]} d5 {[%clk 00:14:49]}
{[%emt 00:00:31]} 5. d4 {[%clk 00:15:18]} {[%emt 00:00:04]} e6 {[%clk
00:14:38]} {[%emt 00:00:16]} 6. cxd5 {[%clk 00:15:17]} {[%emt 00:00:06]} Nxd5
{[%clk 00:14:37]} {[%emt 00:00:06]} 7. Bg2 {[%clk 00:15:17]} {[%emt 00:00:04]}
cxd4 {[%clk 00:14:33]} {[%emt 00:00:09]} 8. Nxd4 {[%clk 00:15:21]} {[%emt
00:00:02]} Nxc3 {[%clk 00:14:35]} {[%emt 00:00:03]} 9. bxc3 {[%clk 00:15:25]}
Nxd4 {[%clk 00:14:38]} {[%emt 00:00:02]} 10. Qxd4 {[%clk 00:15:28]} {[%emt
00:00:01]} Qxd4 {[%clk 00:14:40]} {[%emt 00:00:03]} 11. cxd4 {[%clk 00:15:32]}
Bd6 {[%clk 00:14:09]} {[%emt 00:00:36]} 12. O-O {[%clk 00:15:23]} {[%emt
00:00:14]} Rb8 {[%clk 00:13:54]} {[%emt 00:00:21]} 13. e4 {[%clk 00:15:27]}
{[%emt 00:00:02]} b6 {[%clk 00:13:51]} {[%emt 00:00:08]} 14. e5 {[%clk
00:15:25]} {[%emt 00:00:06]} Be7 {[%clk 00:13:26]} {[%emt 00:00:30]} 15. d5
{[%clk 00:15:01]} {[%emt 00:00:29]} exd5 {[%clk 00:13:20]} {[%emt 00:00:12]} 16.
Bxd5 {[%clk 00:15:05]} {[%emt 00:00:01]} Be6 {[%clk 00:11:35]} {[%emt
00:01:50]} 17. Rd1 {[%clk 00:14:51]} {[%emt 00:00:19]} Bxd5 {[%clk 00:11:20]}
{[%emt 00:00:20]} 18. Rxd5 {[%clk 00:14:54]} {[%emt 00:00:01]} Rd8 {[%clk
00:11:24]} {[%emt 00:00:01]} 19. Rxd8+ {[%clk 00:14:41]} {[%emt 00:00:19]} Kxd8
{[%clk 00:11:08]} {[%emt 00:00:21]} 20. Bb2 {[%clk 00:14:04]} {[%emt 00:00:41]}
Bc5 {[%clk 00:07:06]} {[%emt 00:04:07]} 21. Rd1+ {[%clk 00:13:42]} {[%emt
00:00:27]} Ke7 {[%clk 00:06:57]} {[%emt 00:00:15]} 22. e6 {[%clk 00:11:37]}
{[%emt 00:02:10]} f6 {[%clk 00:05:50]} {[%emt 00:01:11]} 23. Rd7+ {[%clk
00:11:20]} {[%emt 00:00:22]} Kxe6 {[%clk 00:05:54]} {[%emt 00:00:02]} 24. Rxa7
{[%clk 00:10:37]} {[%emt 00:00:48]} Rd8 {[%clk 00:05:53]} {[%emt 00:00:06]} 25.
Ba3 {[%clk 00:10:31]} {[%emt 00:00:12]} Bxa3 {[%clk 00:05:51]} {[%emt
00:00:06]} 26. Rxa3 {[%clk 00:10:34]} {[%emt 00:00:02]} Rd2 {[%clk 00:05:00]}
{[%emt 00:00:56]} 1/2-1/2

[Event "Rapid Tournament (RAP)"]
[Site "Biel, Switzerland"]
[Date "2026.07.12"]
[Round "5.2"]
[White "Savitha, Shri B"]
[Black "Sasikiran, Krishnan"]
[Result "1/2-1/2"]
[TimeControl "15 + 5"]
[WhiteTitle "-"]
[BlackTitle "-"]
[WhiteFideId "35061887"]
[BlackFideId "5004985"]
[WhiteElo "2317"]
[BlackElo "2520"]

1. e4 {[%clk 00:15:08]} {[%emt 00:00:02]} e5 {[%clk 00:14:58]} {[%emt
00:00:11]} 2. Nf3 {[%clk 00:15:11]} {[%emt 00:00:02]} Nc6 {[%clk 00:15:01]}
{[%emt 00:00:02]} 3. Bb5 {[%clk 00:14:58]} {[%emt 00:00:20]} a6 {[%clk
00:14:45]} {[%emt 00:00:19]} 4. Ba4 {[%clk 00:15:02]} {[%emt 00:00:01]} Nf6
{[%clk 00:14:45]} {[%emt 00:00:04]} 5. Nc3 {[%clk 00:15:05]} {[%emt 00:00:02]}
b5 {[%clk 00:13:25]} {[%emt 00:01:25]} 6. Bb3 {[%clk 00:15:09]} {[%emt
00:00:01]} Be7 {[%clk 00:13:16]} {[%emt 00:00:14]} 7. d3 {[%clk 00:15:11]}
{[%emt 00:00:03]} d6 {[%emt 00:00:37]} 8. a4 {[%clk 00:15:05]} b4 {[%clk
00:11:50]} {[%emt 00:01:09]} 9. Nd5 {[%clk 00:15:09]} Na5 {[%clk 00:10:47]}
{[%emt 00:01:08]} 10. Ba2 {[%clk 00:14:50]} {[%emt 00:00:25]} Nxd5 {[%clk
00:10:25]} {[%emt 00:00:26]} 11. Bxd5 {[%clk 00:14:54]} {[%emt 00:00:02]} c6
{[%clk 00:10:26]} {[%emt 00:00:04]} 12. Ba2 {[%clk 00:14:58]} c5 {[%clk
00:10:14]} {[%emt 00:00:17]} 13. O-O {[%clk 00:14:55]} {[%emt 00:00:08]} O-O
{[%clk 00:09:59]} {[%emt 00:00:20]} 14. c3 {[%clk 00:12:39]} {[%emt 00:02:22]}
bxc3 {[%clk 00:09:28]} {[%emt 00:00:36]} 15. bxc3 {[%clk 00:12:42]} {[%emt
00:00:02]} Rb8 {[%clk 00:09:30]} {[%emt 00:00:03]} 16. d4 {[%clk 00:11:24]}
{[%emt 00:01:23]} Qc7 {[%clk 00:08:04]} {[%emt 00:01:31]} 17. Ba3 {[%clk
00:10:08]} {[%emt 00:01:21]} Rd8 {[%clk 00:06:48]} {[%emt 00:01:20]} 18. h3
{[%clk 00:09:29]} {[%emt 00:00:44]} Bf6 {[%clk 00:04:50]} {[%emt 00:02:04]} 19.
Rc1 {[%clk 00:08:24]} {[%emt 00:01:10]} h6 {[%clk 00:04:06]} {[%emt 00:00:49]}
20. Re1 {[%clk 00:07:08]} {[%emt 00:01:22]} Bd7 {[%clk 00:03:02]} {[%emt
00:01:09]} 21. d5 {[%clk 00:03:04]} {[%emt 00:04:08]} Rb7 {[%clk 00:02:22]}
{[%emt 00:00:44]} 22. Qc2 {[%clk 00:02:05]} {[%emt 00:01:05]} Rdb8 {[%clk
00:02:13]} {[%emt 00:00:14]} 23. Rb1 {[%clk 00:01:36]} {[%emt 00:00:35]} Rxb1
{[%clk 00:01:20]} {[%emt 00:00:58]} 24. Rxb1 {[%clk 00:01:40]} Rxb1+ {[%clk
00:01:23]} {[%emt 00:00:01]} 25. Bxb1 {[%clk 00:01:27]} {[%emt 00:00:17]} Nc4
{[%clk 00:01:02]} {[%emt 00:00:26]} 26. Qb3 {[%clk 00:01:32]} Na5 {[%clk
00:00:35]} {[%emt 00:00:33]} 27. Qd1 {[%clk 00:01:27]} {[%emt 00:00:09]} Nc4
{[%clk 00:00:32]} {[%emt 00:00:08]} 28. Qb3 {[%clk 00:01:31]} {[%emt 00:00:02]}
Na5 {[%clk 00:00:27]} {[%emt 00:00:09]} 29. Qd1 {[%clk 00:01:35]} {[%emt
00:00:01]} 1/2-1/2

[Event "Rapid Tournament (RAP)"]
[Site "Biel, Switzerland"]
[Date "2026.07.12"]
[Round "5.3"]
[White "Alexakis, Dimitris"]
[Black "Arjun, Kalyan"]
[Result "1-0"]
[TimeControl "15 + 5"]
[WhiteTitle "-"]
[BlackTitle "-"]
[WhiteFideId "4277023"]
[BlackFideId "35018701"]
[WhiteElo "2518"]
[BlackElo "2390"]

1. e4 {[%clk 00:15:08]} {[%emt 00:00:03]} e5 {[%clk 00:15:09]} 2. Nf3 {[%clk
00:15:10]} {[%emt 00:00:02]} Nc6 {[%clk 00:15:12]} {[%emt 00:00:02]} 3. Bb5
{[%clk 00:15:12]} {[%emt 00:00:03]} a6 {[%clk 00:15:14]} {[%emt 00:00:04]} 4.
Ba4 {[%clk 00:15:15]} {[%emt 00:00:01]} Nf6 {[%clk 00:15:16]} {[%emt 00:00:02]}
5. O-O {[%clk 00:15:17]} {[%emt 00:00:03]} b5 {[%clk 00:15:20]} {[%emt
00:00:02]} 6. Bb3 {[%clk 00:15:20]} {[%emt 00:00:02]} Bc5 {[%clk 00:15:23]}
{[%emt 00:00:02]} 7. c3 {[%clk 00:15:20]} {[%emt 00:00:06]} d6 {[%clk
00:15:27]} {[%emt 00:00:01]} 8. d4 {[%clk 00:12:54]} {[%emt 00:02:31]} Bb6
{[%clk 00:15:30]} {[%emt 00:00:02]} 9. h3 {[%clk 00:12:54]} {[%emt 00:00:04]}
Bb7 {[%clk 00:15:33]} {[%emt 00:00:02]} 10. Re1 {[%clk 00:11:57]} {[%emt
00:01:02]} O-O {[%clk 00:15:36]} {[%emt 00:00:03]} 11. Be3 {[%clk 00:10:48]}
{[%emt 00:01:14]} Na5 {[%clk 00:12:02]} {[%emt 00:03:39]} 12. Bc2 {[%clk
00:10:22]} {[%emt 00:00:31]} exd4 {[%clk 00:11:16]} {[%emt 00:00:51]} 13. Bxd4
{[%clk 00:10:15]} {[%emt 00:00:11]} c5 {[%clk 00:11:18]} {[%emt 00:00:03]} 14.
Bxf6 {[%clk 00:09:46]} {[%emt 00:00:34]} Qxf6 {[%clk 00:11:22]} {[%emt
00:00:01]} 15. Nbd2 {[%clk 00:09:46]} {[%emt 00:00:04]} c4 {[%clk 00:10:44]}
{[%emt 00:00:43]} 16. Nf1 {[%clk 00:08:58]} {[%emt 00:00:53]} Nc6 {[%clk
00:08:54]} {[%emt 00:01:55]} 17. Ne3 {[%clk 00:08:44]} {[%emt 00:00:18]} Ne5
{[%clk 00:08:22]} {[%emt 00:00:37]} 18. Nd4 {[%clk 00:08:25]} {[%emt 00:00:25]}
g6 {[%clk 00:07:21]} {[%emt 00:01:07]} 19. Qd2 {[%clk 00:08:00]} {[%emt
00:00:29]} h5 {[%clk 00:06:10]} {[%emt 00:01:15]} 20. Rf1 {[%clk 00:07:07]}
{[%emt 00:00:59]} Rfe8 {[%clk 00:05:54]} {[%emt 00:00:21]} 21. Kh1 {[%clk
00:06:09]} {[%emt 00:01:03]} Nd3 {[%clk 00:05:07]} {[%emt 00:00:52]} 22. b3
{[%clk 00:03:38]} {[%emt 00:02:36]} b4 {[%clk 00:02:19]} {[%emt 00:02:53]} 23.
Nxc4 {[%clk 00:03:21]} {[%emt 00:00:22]} bxc3 {[%clk 00:02:22]} {[%emt
00:00:02]} 24. Qxd3 {[%clk 00:03:21]} {[%emt 00:00:05]} Bxe4 {[%clk 00:01:52]}
{[%emt 00:00:35]} 25. Qxe4 {[%clk 00:03:23]} {[%emt 00:00:03]} Rxe4 {[%clk
00:01:56]} {[%emt 00:00:02]} 26. Bxe4 {[%clk 00:03:22]} {[%emt 00:00:06]} d5
{[%clk 00:00:47]} {[%emt 00:01:14]} 27. Bxd5 {[%clk 00:03:01]} {[%emt
00:00:26]} Rd8 {[%clk 00:00:47]} {[%emt 00:00:05]} 28. Nc6 {[%clk 00:02:22]}
{[%emt 00:00:43]} Rxd5 {[%clk 00:00:50]} {[%emt 00:00:03]} 29. Nxb6 {[%emt
00:00:28]} Rb5 {[%clk 00:00:28]} 30. Nc8 {[%clk 00:02:17]} {[%emt 00:00:13]}
Rc5 {[%clk 00:00:28]} {[%emt 00:00:06]} 31. N8e7+ {[%clk 00:01:24]} {[%emt
00:00:58]} Kg7 {[%clk 00:00:32]} {[%emt 00:00:01]} 32. Rac1 {[%clk 00:01:28]}
{[%emt 00:00:01]} c2 {[%clk 00:00:32]} {[%emt 00:00:05]} 33. b4 {[%clk
00:01:32]} Rxc6 {[%clk 00:00:25]} {[%emt 00:00:12]} 34. Nxc6 {[%clk 00:01:35]}
{[%emt 00:00:02]} Qxc6 {[%clk 00:00:29]} 35. f3 {[%clk 00:00:44]} {[%emt
00:00:57]} Qc4 {[%clk 00:00:12]} {[%emt 00:00:25]} 36. Rf2 {[%clk 00:00:42]}
{[%emt 00:00:05]} Qxa2 {[%clk 00:00:13]} {[%emt 00:00:04]} 37. Rfxc2 {[%clk
00:00:45]} {[%emt 00:00:02]} Qb3 {[%clk 00:00:14]} {[%emt 00:00:04]} 38. Rc4
{[%clk 00:00:48]} {[%emt 00:00:02]} Qb2 {[%clk 00:00:12]} {[%emt 00:00:07]} 39.
h4 {[%clk 00:00:40]} {[%emt 00:00:13]} Qd2 {[%clk 00:00:13]} {[%emt 00:00:04]}
40. R1c2 {[%clk 00:00:38]} {[%emt 00:00:07]} Qd3 {[%clk 00:00:13]} {[%emt
00:00:05]} 41. Kh2 {[%clk 00:00:41]} {[%emt 00:00:02]} Qd6+ {[%clk 00:00:17]}
{[%emt 00:00:02]} 42. Kg1 {[%clk 00:00:41]} {[%emt 00:00:05]} Qd1+ {[%clk
00:00:21]} {[%emt 00:00:01]} 43. Kf2 {[%clk 00:00:45]} Qd3 {[%clk 00:00:22]}
{[%emt 00:00:03]} 44. Kg1 {[%clk 00:00:16]} {[%emt 00:00:35]} Qd1+ {[%clk
00:00:26]} {[%emt 00:00:01]} 45. Kh2 {[%clk 00:00:20]} Qd6+ {[%clk 00:00:30]}
{[%emt 00:00:01]} 46. Kh3 {[%clk 00:00:23]} {[%emt 00:00:02]} Qd7+ {[%clk
00:00:33]} {[%emt 00:00:02]} 47. Kg3 {[%clk 00:00:25]} {[%emt 00:00:03]} Qd6+
{[%clk 00:00:38]} {[%emt 00:00:01]} 48. Kf2 {[%clk 00:00:00]} {[%emt 00:02:50]}
Qd3 {[%clk 00:00:28]} {[%emt 00:00:24]} 49. g3 {[%clk 00:01:15]} {[%emt
00:00:06]} Qd5 {[%clk 00:00:23]} {[%emt 00:00:09]} 50. Rf4 {[%clk 00:01:00]}
{[%emt 00:00:21]} Qd3 {[%clk 00:00:12]} {[%emt 00:00:17]} 51. Re2 {[%clk
00:01:04]} {[%emt 00:00:01]} Qd6 {[%clk 00:00:14]} {[%emt 00:00:03]} 52. Kg2
{[%clk 00:00:56]} {[%emt 00:00:12]} Qc6 {[%clk 00:00:11]} {[%emt 00:00:09]} 53.
Re7 {[%clk 00:00:11]} {[%emt 00:00:50]} Qc2+ {[%clk 00:00:15]} 54. Kh3 {[%clk
00:00:15]} Qf2 {[%clk 00:00:13]} {[%emt 00:00:06]} 55. Rfxf7+ {[%clk 00:00:09]}
{[%emt 00:00:11]} Kg8 {[%clk 00:00:15]} {[%emt 00:00:04]} 56. g4 {[%clk
00:00:08]} {[%emt 00:00:06]} Qf1+ {[%clk 00:00:10]} {[%emt 00:00:10]} 57. Kg3
{[%clk 00:00:11]} {[%emt 00:00:01]} Qg1+ {[%clk 00:00:11]} {[%emt 00:00:03]} 58.
Kf4 {[%clk 00:00:14]} {[%emt 00:00:02]} Qc1+ {[%clk 00:00:15]} {[%emt
00:00:01]} 59. Ke5 {[%clk 00:00:13]} {[%emt 00:00:06]} Qc3+ {[%clk 00:00:19]}
{[%emt 00:00:01]} 60. Kd5 {[%clk 00:00:13]} {[%emt 00:00:05]} hxg4 {[%clk
00:00:20]} {[%emt 00:00:04]} 61. fxg4 {[%clk 00:00:08]} {[%emt 00:00:10]} Qxb4
{[%clk 00:00:23]} {[%emt 00:00:02]} 62. Rg7+ {[%clk 00:00:10]} {[%emt
00:00:03]} Kh8 {[%clk 00:00:23]} {[%emt 00:00:05]} 63. Rh7+ {[%clk 00:00:11]}
{[%emt 00:00:04]} Kg8 {[%clk 00:00:28]} 64. Reg7+ {[%clk 00:00:15]} Kf8 {[%clk
00:00:32]} 65. Rb7 {[%clk 00:00:19]} {[%emt 00:00:01]} Qd2+ {[%clk 00:00:33]}
{[%emt 00:00:05]} 66. Kc6 {[%clk 00:00:13]} {[%emt 00:00:11]} Qc3+ {[%clk
00:00:33]} {[%emt 00:00:05]} 67. Kd7 {[%clk 00:00:09]} {[%emt 00:00:09]} Qd4+
{[%clk 00:00:22]} {[%emt 00:00:15]} 68. Kc8 {[%clk 00:00:11]} {[%emt 00:00:04]}
Qxg4+ {[%clk 00:00:24]} {[%emt 00:00:03]} 69. Kb8 {[%clk 00:00:14]} {[%emt
00:00:01]} Kg8 {[%clk 00:00:09]} {[%emt 00:00:21]} 70. Rhc7 {[%clk 00:00:17]}
{[%emt 00:00:02]} Qf4 {[%clk 00:00:09]} {[%emt 00:00:05]} 71. Ka8 {[%clk
00:00:19]} {[%emt 00:00:03]} Qf8+ {[%clk 00:00:06]} {[%emt 00:00:08]} 72. Rb8
{[%clk 00:00:22]} {[%emt 00:00:02]} a5 {[%clk 00:00:10]} {[%emt 00:00:01]} 73.
Rxf8 {[%clk 00:00:23]} {[%emt 00:00:03]} Kxf8 {[%clk 00:00:14]} {[%emt
00:00:01]} 74. Kb7 {[%clk 00:00:26]} {[%emt 00:00:02]} 1-0